Workbook

Sheet анализ (hidden)

Sheet Загальний ввод
A19: № | B19: Свердловина | C19: Початок експлуатації приладу | F19: Кінець експлуатації приладу | I19: Час експлуатації, год | J19: Час циркуляції, год | K19: Інтервал роботи, м | L19: Відмітка про проведення ремонту | M19: Примітки(дата, вид роботи) | N19: Циркуляція | O19: Час нижче ротора | P19: НОБТ 171,5 мм
C20: Дата | D20: Час, год | E20: Глибина, м | F20: Дата | G20: Час, год | H20: Глибина, м | I20: =SUM(I21:I38) -> 160.2930556 | J20: =IF(SUM(J21:J38)>0,SUM(J21:J38),0) -> 86.20555556 | K20: =SUM(K21:K38) -> 2518.3 | P20: NMDC 1338 | Q20: NMDC 1339 | R20: NMDC 1341
A21: 1 | B21: 300 Опішня | C21: 2018-10-03 | D21: 01:30:00 | E21: 3188.9 | F21: 2018-10-13 | G21: 08:00:00 | H21: 3314.8 | I21: =IF(F21>0,(F21+G21)-(C21+D21)," ") -> 10.27083333 | J21: 5.279166667 | K21: =IF(H21>0,H21-E21," ") -> 125.9
A22: 2 | B22: 525 Кегичівка | C22: 2018-10-16 | D22: 08:18:00 | E22: 2055.4 | F22: 2018-10-25 | G22: 04:00:00 | H22: 2163.5 | I22: 8.820833333 | J22: 4.763888889 | K22: =IF(H22>0,H22-E22," ") -> 108.1
A23: 3 | B23: 33 Краснокутська | C23: 2018-11-28 | D23: 08:00:00 | E23: 3545 | F23: 2018-12-13 | G23: 12:45:00 | H23: 3623.1 | I23: 15.19791667 | J23: 8.743055556 | K23: =IF(H23>0,H23-E23," ") -> 78.1 | L23: Сервіс | M23: Проводили сервіс, замінили полипак смолл, ризинки в незадовільному стані, а саме, якісь дубові, тим самим вони пропустили невелику кількість бруду, на роботу пульсатора це ніяким чином не вплинуло. Сервіс провили при напрацюванні 450:52 годни циркуляції | N23: 11.20833333 | O23: 15.07638889
A24: 4 | B24: 22 Зах Борисівська | C24: 2019-01-04 | D24: 16:00:00 | E24: 926
A25: 7 | B25: 26 Червоноярська | C25: 2018-06-16 | D25: 03:00:00 | E25: 1080 | F25: 2018-06-22 | G25: 10:00:00 | H25: 1333.8 | I25: =IF(F25>0,(F25+G25)-(C25+D25)," ") -> 6.291666667 | J25: 4.625 | K25: =IF(H25>0,H25-E25," ") -> 253.8 | N25: 4.625 | O25: 6.291666667
A26: 8 | B26: 117 Медведівка | C26: 2018-06-29 | D26: 12:30:00 | E26: 1120.6 | F26: 2018-07-07 | G26: 05:00:00 | H26: 1458.5 | I26: 7.6875 | J26: 3.638888889 | K26: =IF(H26>0,H26-E26," ") -> 337.9 | L26: Сервіс | M26: Порушення цілісності мембрани сервоклапана, выкревлений вал сервоклапана | N26: 3.638888889 | O26: 7.6875
A27: 9 | K27: =IF(H27>0,H27-E27," ") -> 
A28: 1 | B28: 117 Медведівка | C28: 2018-07-18 | D28: 04:20:00 | E28: 2080 | F28: 2018-07-22 | G28: 12:30:00 | H28: 2247 | I28: =IF(F28>0,(F28+G28)-(C28+D28)," ") -> 4.340277778 | J28: 1.84375 | K28: 167 | N28: 1.84375 | O28: 3.180555556
A29: 2 | B29: 85 сх.Медведівка | C29: 2018-07-30 | D29: 11:35:00 | E29: 1774 | F29: 2018-08-05 | G29: 12:00:00 | H29: 2008.7 | I29: 6.017361111 | J29: 3.104166667 | K29: 234.7 | N29: 3.104166667 | O29: 5.395833333
B30: 73 Зах.Соснівська | C30: 2018-08-13 | D30: 16:30:00 | E30: 3430 | F30: 2018-09-01 | G30: 08:00:00 | H30: 3660 | I30: =IF(F30>0,F30-C30," ") -> 19 | J30: 10.89791667 | K30: =IF(H30>0,H30-E30," ") -> 230 | N30: 10.89791667 | O30: 17.22916667 | P30: 1 | Q30: 1
B31: 300 Опішня | C31: 2018-09-16 | D31: 09:30:00 | E31: 3095 | F31: 2018-10-13 | G31: 08:00:00 | H31: 3314.8 | I31: 27 | J31: 11.78125 | K31: 219.8 | N31: 11.78125 | O31: 22.24305556
B32: 525 Кегичівка | C32: 2018-10-16 | D32: 08:18:00 | E32: 2055.4 | F32: 2018-10-25 | G32: 04:00:00 | H32: 2163.5 | I32: 9 | J32: 4.763888889 | K32: 108.1 | N32: 4.763888889 | O32: 9.125
B33: 33 Краснокутська | C33: 2018-11-28 | D33: 05:00:00 | E33: 3545 | F33: 2018-12-17 | G33: 18:00:00 | H33: 3679.3 | I33: =IF(F33>0,F33-C33," ") -> 19 | J33: 11.12152778 | K33: 134.3 | L33: Сервіс | M33: Сервіс ролл тесту проводили більш менш з меншими похибками біля прачечной на вході ПВБР | N33: 11.20833333 | O33: 15.07638889
B34: 22 Зах Борисівська | C34: 2019-01-04 | D34: 16:00:00 | E34: 926
B35: 117Медведівка | C35: 2018-10-20 | D35: 08:00:00 | E35: 3380 | F35: 2018-10-29 | G35: 08:00:00 | H35: 3521.7 | I35: =IF(F35>0,(F35+G35)-(C35+D35)," ") -> 9 | J35: 5.770833333 | K35: 141.7 | N35: 5.770833333 | O35: 8.083333333 | P35: 1 | Q35: 1
B36: 160 Гадяч | C36: 2018-11-03 | D36: 08:00:00 | E36: 3073 | F36: 2018-11-14 | G36: 00:00:00 | H36: 3296 | I36: 10.66666667 | J36: 6.648611111 | K36: 223 | N36: 6.648611111 | O36: 9.895833333 | Q36: 1 | R36: 1
B37: 50 Абазівка | C37: 2018-11-24 | D37: 08:00:00 | E37: 4005.6 | F37: 2018-12-02 | G37: 08:00:00 | H37: 4161.5 | I37: 8 | J37: 3.223611111 | K37: 155.9 | M37: 05-12-18 , переповнення пом'яті, зтирання пам'яті. | N37: 3.223611111 | O37: 10.1875 | Q37: 1 | R37: 1
B39: РОБОТИ з 01.01.2019 р.
B40: 410 Біляївська | C40: 2019-01-06 | D40: 08:30:00 | E40: 3400.7 | I40: =IF(F40>0,(F40+G40)-(C40+D40)," ") ->  | K40: =IF(H40>0,H40-E40," ") ->  | Q40: 1 | R40: 1
B41: 22 Зах Борисівська | C41: 2019-01-04 | D41: 16:00:00 | E41: 926 | P41: 1 | Q41: 1

Sheet NMDC
K1: 41.66666667
A2: N п/п | B2: Свердловина | C2: Дата початку експлуатації | F2: Дата кінця експлуатації | I2: Інтервал роботи, м | K2: NMDC 171
C3: Дата | D3: Час, год | E3: Глибина, м | F3: Дата | G3: Час, год | H3: Глибина, м | I3: =SUM(I4:I41) -> 1212.8 | J3: NMDC 1338 | K3: NMDC 1339 | L3: NMDC 1341
B4: Заг.напр.циркуляція | J4: =K1-SUMIF(INDEX(B5:B681,IF(ISNA(MATCH("сервіс1338",#REF!,)),1,SUMPRODUCT(MAX((#REF!="сервіс1338")*ROW(J5:J681)))-10)):B681,#REF!,INDEX(J5:J681,IF(ISNA(MATCH("сервіс1338",#REF!,)),1,SUMPRODUCT(MAX((#REF!="сервіс1338")*ROW(J5:J681)))-10)):J681) ->  | K4: =K1-SUMIF(INDEX(B5:B681,IF(ISNA(MATCH("сервіс1339",#REF!,)),1,SUMPRODUCT(MAX((#REF!="сервіс1339")*ROW(K5:K681)))-10)):B681,#REF!,INDEX(K5:K681,IF(ISNA(MATCH("сервіс1339",#REF!,)),1,SUMPRODUCT(MAX((#REF!="сервіс1339")*ROW(K5:K681)))-10)):K681) ->  | L4: =K1-SUMIF(INDEX(B5:B681,IF(ISNA(MATCH("сервіс1341",#REF!,)),1,SUMPRODUCT(MAX((#REF!="сервіс1341")*ROW(L5:L681)))-10)):B681,#REF!,INDEX(L5:L681,IF(ISNA(MATCH("сервіс1341",#REF!,)),1,SUMPRODUCT(MAX((#REF!="сервіс1341")*ROW(L5:L681)))-10)):L681) -> 
A5: 5 | B5: 73 Зах.Соснівська | C5: 2018-08-13 | D5: 16:30:00 | E5: 3430 | F5: 2018-09-01 | G5: 08:00:00 | H5: 3660 | I5: =H5-E5 -> 230
B6: Циркуляція | J6: =IF('Загальний ввод'!P30<1,0,'Загальний ввод'!N30) -> 10.89791667 | K6: =IF('Загальний ввод'!Q30<1,0,'Загальний ввод'!N30) -> 10.89791667 | L6: =IF('Загальний ввод'!R30<1,0,'Загальний ввод'!N30) -> 0
B7: Інтервал роботи | J7: =IF('Загальний ввод'!P30<1,0,'Загальний ввод'!K30) -> 230 | K7: =IF('Загальний ввод'!Q30<1,0,'Загальний ввод'!K30) -> 230 | L7: =IF('Загальний ввод'!R30<1,0,'Загальний ввод'!K30) -> 0
B8: Час нижче ротора | J8: =IF('Загальний ввод'!P30<1,0,'Загальний ввод'!O30) -> 17.22916667 | K8: =IF('Загальний ввод'!Q30<1,0,'Загальний ввод'!O30) -> 17.22916667 | L8: =IF('Загальний ввод'!R30<1,0,'Загальний ввод'!O30) -> 0
A9: 6 | B9: 300 Опішня | C9: 2018-09-16 | D9: 09:30:00 | E9: 3095 | F9: 2018-10-13 | G9: 08:00:00 | H9: 3314.8 | I9: 219.8
B10: Циркуляція
B11: Інтервал роботи
B12: Час нижче ротора
A13: 7 | B13: 525 Кегичівка | C13: 2018-10-16 | D13: 08:18:00 | E13: 2055.4 | F13: 2018-10-25 | G13: 04:00:00 | H13: 2163.5 | I13: =H13-E13 -> 108.1
B14: Циркуляція
B15: Інтервал роботи
B16: Час нижче ротора
A17: 8 | B17: 117Медведівка | C17: 2018-10-20 | D17: 08:00:00 | E17: 3380 | F17: 2018-10-29 | G17: 08:00:00 | H17: 3521.7 | I17: =H17-E17 -> 141.7
A18: 9 | B18: Циркуляція | J18: =IF('Загальний ввод'!P35<1,0,'Загальний ввод'!N35) -> 5.770833333 | K18: =IF('Загальний ввод'!Q35<1,0,'Загальний ввод'!N35) -> 5.770833333 | L18: =IF('Загальний ввод'!R35<1,0,'Загальний ввод'!N35) -> 0
B19: Інтервал роботи | J19: =IF('Загальний ввод'!P35<1,0,'Загальний ввод'!K35) -> 141.7 | K19: =IF('Загальний ввод'!Q35<1,0,'Загальний ввод'!K35) -> 141.7 | L19: =IF('Загальний ввод'!R35<1,0,'Загальний ввод'!K35) -> 0
B20: Час нижче ротора | J20: =IF('Загальний ввод'!P35<1,0,'Загальний ввод'!O35) -> 8.083333333 | K20: =IF('Загальний ввод'!Q35<1,0,'Загальний ввод'!O35) -> 8.083333333 | L20: =IF('Загальний ввод'!R35<1,0,'Загальний ввод'!O35) -> 0
A21: 9 | B21: 160 Гадяч | C21: 2018-11-03 | D21: 08:00:00 | E21: 3073 | F21: 2018-11-14 | G21: 00:00:00 | H21: 3296 | I21: =H21-E21 -> 223
A22: 45 | B22: Циркуляція | J22: =IF('Загальний ввод'!P36<1,0,'Загальний ввод'!N36) -> 0 | K22: =IF('Загальний ввод'!Q36<1,0,'Загальний ввод'!N36) -> 6.648611111 | L22: =IF('Загальний ввод'!R36<1,0,'Загальний ввод'!N36) -> 6.648611111
B23: Інтервал роботи | J23: =IF('Загальний ввод'!P36<1,0,'Загальний ввод'!K36) -> 0 | K23: =IF('Загальний ввод'!Q36<1,0,'Загальний ввод'!K36) -> 223 | L23: =IF('Загальний ввод'!R36<1,0,'Загальний ввод'!K36) -> 223
B24: Час нижче ротора | J24: =IF('Загальний ввод'!P36<1,0,'Загальний ввод'!O36) -> 0 | K24: =IF('Загальний ввод'!Q36<1,0,'Загальний ввод'!O36) -> 9.895833333 | L24: =IF('Загальний ввод'!R36<1,0,'Загальний ввод'!O36) -> 9.895833333
A25: 10 | B25: 33 Краснокутська | C25: 2018-11-28 | D25: 05:00:00 | E25: 3545 | F25: 2018-12-17 | G25: 18:00:00 | H25: 3679.3 | I25: =H25-E25 -> 134.3
B26: Циркуляція
B27: Інтервал роботи
B28: Час нижче ротора
A29: =IF(SUM('Загальний ввод'!P37:R37),'Загальний ввод'!B37,"0") -> 50 Абазівка | B29: 50 Абазівка | C29: 2018-11-24 | D29: 08:00:00 | E29: 4005.6 | F29: 2018-12-02 | G29: 08:00:00 | H29: 4161.5 | I29: =H29-E29 -> 155.9
B30: Циркуляція | J30: =IF('Загальний ввод'!P37<1,0,'Загальний ввод'!N37) -> 0 | K30: =IF('Загальний ввод'!Q37<1,0,'Загальний ввод'!N37) -> 3.223611111 | L30: =IF('Загальний ввод'!R37<1,0,'Загальний ввод'!N37) -> 3.223611111
B31: Інтервал роботи | J31: =IF('Загальний ввод'!P37<1,0,'Загальний ввод'!K37) -> 0 | K31: =IF('Загальний ввод'!Q37<1,0,'Загальний ввод'!K37) -> 155.9 | L31: =IF('Загальний ввод'!R37<1,0,'Загальний ввод'!K37) -> 155.9
B32: Час нижче ротора | J32: =IF('Загальний ввод'!P37<1,0,'Загальний ввод'!O37) -> 0 | K32: =IF('Загальний ввод'!Q37<1,0,'Загальний ввод'!O37) -> 10.1875 | L32: =IF('Загальний ввод'!R37<1,0,'Загальний ввод'!O37) -> 10.1875
A33: =IF(SUM('Загальний ввод'!P41:R41),'Загальний ввод'!B41,"?") -> 22 Зах Борисівська | B33: 22 Зах Борисівська | C33: 2019-01-04 | D33: 16:00:00 | E33: 926
A34: =IF(SUM('Загальний ввод'!P42:R42),'Загальний ввод'!B42,"?") -> ? | B34: Циркуляція
A35: =IF(SUM('Загальний ввод'!P43:R43),'Загальний ввод'!B43,"?") -> ? | B35: Інтервал роботи
A36: =IF(SUM('Загальний ввод'!P44:R44),'Загальний ввод'!B44,"?") -> ? | B36: Час нижче ротора
A37: =IF(SUM('Загальний ввод'!P45:R45),'Загальний ввод'!B45,"?") -> ? | B37: 410 Біляївська | C37: 2019-01-06 | D37: 08:30:00 | E37: 3400.7
A38: =IF(SUM('Загальний ввод'!P46:R46),'Загальний ввод'!B46,"?") -> ? | B38: Циркуляція
A39: =IF(SUM('Загальний ввод'!P47:R47),'Загальний ввод'!B47,"?") -> ? | B39: Інтервал роботи
A40: =IF(SUM('Загальний ввод'!P48:R48),'Загальний ввод'!B48,"?") -> ? | B40: Час нижче ротора
A41: =IF(SUM('Загальний ввод'!P49:R49),'Загальний ввод'!B49,"?") -> ?
A42: =IF(SUM('Загальний ввод'!P50:R50),'Загальний ввод'!B50,"?") -> ?
A44: =IF(SUM('Загальний ввод'!P52:R52),'Загальний ввод'!B52,"?") -> ?
A45: =IF(SUM('Загальний ввод'!P53:R53),'Загальний ввод'!B53,"?") -> ?
A46: =IF(SUM('Загальний ввод'!P54:R54),'Загальний ввод'!B54,"?") -> ?
